bitfinex/quotes_BTCUSD_20260104
["timestamp","ask_amount","ask_price","bid_price","bid_amount"]
[1767558304672,0.01096443,91204.0,91200.0,0.01096491]
[1767558304822,0.0657868,91204.0,91199.0,0.06579015]
[1767558305007,0.06578772,91203.0,91198.0,0.0657908]
[1767558305208,0.0657868,91204.0,91199.0,0.06578997]
[1767558305407,0.01096443,91204.0,91200.0,0.01096491]
[1767558306291,0.06578605,91205.0,91200.0,0.06578921]
[1767558306500,0.06578677,91204.0,91199.0,0.01096503]
[1767558306659,0.06578677,91204.0,91200.0,0.01096491]
[1767558307384,0.01096443,91204.0,91200.0,0.01096491]
[1767558307890,0.06578669,91204.0,91199.0,0.06578984]
[1767558308106,0.06578605,91205.0,91200.0,0.06578919]
[1767558308383,0.06578605,91205.0,91200.0,0.0657442]
[1767558312502,0.01096443,91204.0,91200.0,0.0657442]
[1767558312682,0.01096443,91204.0,91200.0,0.01091992]
[1767558312831,0.01096455,91203.0,91199.0,0.01096503]
[1767558313249,0.06578662,91204.0,91199.0,0.06578997]
[1767558315615,0.06578605,91205.0,91200.0,0.06578941]
[1767558316951,0.06578605,91205.0,91201.0,0.01096479]
[1767558317166,0.06578529,91206.0,91205.0,0.000999]
[1767558317385,0.06578529,91206.0,91202.0,0.01096467]
[1767558318288,0.06578529,91206.0,91201.0,0.06578857]
[1767558318510,0.01096431,91205.0,91201.0,0.01096479]
[1767558318720,0.06578529,91206.0,91201.0,0.06578866]
[1767558318935,0.05481978,91208.0,91202.0,0.06578802]
[1767558319150,0.06578345,91209.0,91206.0,0.000999]
[1767558319417,0.06578413,91208.0,91204.0,0.01096443]
[1767558319641,0.01096395,91208.0,91204.0,0.01096443]
[1767558321985,0.06578345,91209.0,91204.0,0.06578646]
[1767558322235,0.06578345,91209.0,91204.0,0.01096443]
[1767558322648,0.06578345,91209.0,91204.0,0.06578648]
[1767558322863,0.01096395,91208.0,91204.0,0.01096443]
[1767558323338,0.02192,91210.0,91205.0,0.0548213]
[1767558323558,0.00049382,91212.0,91211.0,0.05481794]
[1767558323813,0.01111462,91219.0,91215.0,0.0109631]
[1767558324042,0.000152,91219.0,91215.0,0.0109631]
[1767558324549,0.01111462,91219.0,91215.0,0.0109631]
[1767558325417,0.000152,91219.0,91215.0,0.0109631]
[1767558325863,4.5e-05,91215.0,91213.0,0.065779]
[1767558326313,0.01111462,91219.0,91215.0,0.0109631]
[1767558327687,0.000152,91219.0,91216.0,0.01096298]
[1767558327913,5.199e-05,91219.0,91217.0,0.05481403]
[1767558328166,5.199e-05,91219.0,91218.0,0.05481374]
[1767558328887,0.04384329,91224.0,91219.0,0.0548129]
[1767558329053,0.04384329,91224.0,91220.0,0.0109625]
[1767558329259,0.04384329,91224.0,91220.0,0.0109175]
[1767558330189,0.01096202,91224.0,91220.0,0.0109175]
[1767558330392,0.06577225,91224.0,91218.0,0.06577648]
[1767558330542,0.01096202,91224.0,91220.0,0.0109625]
[1767558332039,0.08769185,91225.0,91220.0,0.0109625]
[1767558332668,0.02192,91225.0,91221.0,0.01096238]
[1767558332866,0.03288008,91227.0,91225.0,0.000999]
[1767558333242,0.04384174,91227.0,91222.0,0.06577313]
[1767558333477,0.06577005,91227.0,91222.0,0.01096226]
[1767558333683,0.01096166,91227.0,91223.0,0.01096214]
[1767558333862,0.06576977,91228.0,91223.0,0.06577285]
[1767558335490,0.01100146,91229.0,91224.0,0.06577179]
[1767558335990,0.01096154,91228.0,91224.0,0.01096202]
[1767558336556,0.01100146,91229.0,91228.0,0.000999]
[1767558336697,4.004e-05,91229.0,91228.0,0.000999]
[1767558336896,4.004e-05,91229.0,91226.0,0.06577064]
[1767558337762,0.02192,91235.0,91227.0,0.01096166]
[1767558337923,0.05480526,91233.0,91229.0,4e-05]
[1767558338129,0.0657662,91233.0,91227.0,0.06576999]
[1767558338355,0.01096106,91232.0,91227.0,0.01096166]
[1767558339067,0.01096106,91232.0,91228.0,0.01096154]
[1767558339362,0.0657662,91233.0,91227.0,0.06576991]
[1767558339583,0.01096094,91233.0,91228.0,0.01096154]
[1767558340158,0.06576639,91232.0,91227.0,0.01096166]
[1767558340362,0.01096094,91233.0,91228.0,0.01096154]
[1767558340948,0.0876844,91235.0,91229.0,0.01096142]
[1767558341154,0.06576501,91234.0,91229.0,0.01096142]
[1767558341375,0.08768428,91235.0,91230.0,0.0109613]
[1767558341534,0.01096094,91233.0,91229.0,0.01096142]
[1767558341735,0.01096082,91234.0,91229.0,0.01096142]
[1767558341976,0.01096082,91234.0,91229.0,0.06576854]
[1767558342171,0.01096106,91232.0,91227.0,0.06576995]
[1767558342348,0.06576567,91233.0,91228.0,0.01096154]
[1767558342967,0.01096094,91233.0,91228.0,0.01096154]
[1767558343379,0.01096118,91231.0,91227.0,0.01096166]
[1767558343606,0.0109613,91230.0,91226.0,0.04520803]
[1767558343823,0.06576691,91232.0,91226.0,0.06577021]
[1767558344037,0.01132116,91232.0,91228.0,0.01096154]
[1767558344257,0.06612655,91232.0,91227.0,0.01096166]
[1767558344720,0.01132116,91232.0,91227.0,0.01096166]
[1767558345242,0.0003601,91232.0,91228.0,0.01096154]
[1767558346253,0.0003601,91232.0,91229.0,0.01096142]
[1767558346664,0.0003601,91232.0,91229.0,0.06576832]
[1767558347044,1e-07,91232.0,91230.0,0.05480649]
[1767558347463,1e-07,91232.0,91229.0,0.06576832]
[1767558347885,1e-07,91232.0,91230.0,0.05480647]
[1767558348095,1e-07,91232.0,91229.0,0.06576832]
[1767558348739,1e-07,91232.0,91230.0,0.05480645]
[1767558349257,1e-07,91232.0,91230.0,0.05476146]
[1767558349925,1e-07,91232.0,91229.0,0.06576832]
[1767558350184,0.01096082,91234.0,91229.0,0.06576832]
[1767558350396,0.01106881,91234.0,91229.0,0.06576832]
[1767558350741,0.00010799,91234.0,91230.0,0.06576768]
[1767558351080,0.01106881,91234.0,91230.0,0.0109613]
[1767558351279,0.00010799,91234.0,91230.0,0.0109613]
[1767558351705,0.01106881,91234.0,91229.0,0.06576832]
[1767558352684,0.01106881,91234.0,91230.0,0.0109613]
[1767558353139,0.01106881,91234.0,91229.0,0.06576832]
[1767558353336,0.00010799,91234.0,91230.0,0.0657677]
[1767558353915,0.01106881,91234.0,91230.0,0.0109613]
[1767558354244,0.01106881,91234.0,91229.0,0.06576832]
[1767558354415,0.00036,91230.0,91229.0,0.01096142]
[1767558354958,0.00010799,91234.0,91230.0,0.0109613]
[1767558355483,0.06587305,91234.0,91229.0,0.01096142]
[1767558359471,0.00036,91229.0,91227.0,0.06576893]
[1767558359670,0.00036,91229.0,91228.0,0.05480773]
[1767558359986,0.00010799,91234.0,91230.0,0.05480619]
[1767558360399,0.00010799,91234.0,91229.0,0.05480663]
[1767558360600,0.00010799,91234.0,91230.0,0.05397602]
[1767558360802,0.00010799,91234.0,91230.0,0.0109613]
[1767558361001,0.06587305,91234.0,91229.0,0.01096142]
[1767558361603,0.01106881,91234.0,91230.0,0.0109613]
[1767558361799,0.00010799,91234.0,91230.0,0.0109613]
[1767558362006,0.00010799,91234.0,91231.0,0.01096118]
[1767558362212,0.00010799,91234.0,91230.0,0.06576767]
[1767558363616,0.01106881,91234.0,91229.0,0.06576844]
[1767558364237,0.00010799,91234.0,91230.0,0.0657677]
[1767558364745,0.00010799,91234.0,91231.0,0.01096118]
[1767558365125,0.00010799,91234.0,91230.0,0.0109613]
[1767558366133,0.00010799,91234.0,91230.0,0.06576768]
[1767558367047,0.00010799,91234.0,91231.0,0.01096118]
[1767558367625,0.00036,91231.0,91230.0,0.06576751]
[1767558368183,0.01106881,91234.0,91229.0,0.01096142]
[1767558368393,0.01106881,91234.0,91229.0,0.0657683]
[1767558368613,0.06587295,91234.0,91229.0,0.0657683]
[1767558370028,0.06587295,91234.0,91229.0,0.01096142]
[1767558371862,0.01096094,91233.0,91228.0,0.06576818]
[1767558372072,0.06587295,91234.0,91229.0,0.01096142]
[1767558372574,0.06576573,91233.0,91228.0,0.06576818]
[1767558373148,0.06587295,91234.0,91229.0,0.06576848]
[1767558373583,0.01096094,91233.0,91229.0,0.01096142]
[1767558373735,0.0657657,91233.0,91228.0,0.01096154]
[1767558374136,0.01096094,91233.0,91229.0,0.01096142]
[1767558374386,0.01096094,91233.0,91228.0,0.06576906]
[1767558374552,0.01096094,91233.0,91228.0,0.01096154]
[1767558374754,0.06576588,91233.0,91228.0,0.01096154]
[1767558374951,0.01096094,91233.0,91228.0,0.06576898]
[1767558375936,0.01096106,91232.0,91228.0,0.01096154]
[1767558376289,0.06587295,91234.0,91229.0,0.01096142]
[1767558377744,0.01096094,91233.0,91229.0,0.01096142]
[1767558377871,0.01096094,91233.0,91229.0,0.01046142]
[1767558378078,0.06587295,91234.0,91229.0,0.06526845]
[1767558378299,0.01096094,91233.0,91228.0,0.06576895]
[1767558378500,0.06587297,91234.0,91229.0,0.06576828]
[1767558378673,0.06587297,91234.0,91229.0,0.01096142]
[1767558378864,0.07768433,91235.0,91234.0,0.00053101]
[1767558379282,0.01096082,91234.0,91229.0,0.06576807]
[1767558379901,0.06576515,91234.0,91229.0,0.06576807]
[1767558380115,0.06576515,91234.0,91229.0,0.01096142]
[1767558380282,0.01096094,91233.0,91228.0,0.06576895]
[1767558380490,0.01096094,91233.0,91229.0,0.01096142]
[1767558381568,0.06576515,91234.0,91229.0,0.06576835]
[1767558381933,0.01096094,91233.0,91229.0,0.01096142]
[1767558383304,0.01096106,91232.0,91228.0,0.01096154]
[1767558383596,0.06576577,91233.0,91228.0,0.06576917]
[1767558383792,0.06576607,91233.0,91228.0,0.0657692]
[1767558383945,0.01096094,91233.0,91228.0,0.065769]
[1767558384145,0.06576584,91233.0,91228.0,0.065769]
[1767558384351,0.01096106,91232.0,91228.0,0.01049354]
[1767558384554,0.01096106,91232.0,91228.0,0.01096154]
[1767558384755,0.06576584,91233.0,91228.0,0.06576917]
[1767558385017,0.06576584,91233.0,91227.0,0.06576981]
[1767558385825,0.01096094,91233.0,91229.0,0.01096142]
[1767558385989,0.06576501,91234.0,91229.0,0.06572308]
[1767558386355,0.01096082,91234.0,91229.0,0.06572308]
[1767558386985,0.06576505,91234.0,91229.0,0.06572308]
[1767558388267,0.06576567,91233.0,91228.0,0.06576874]
[1767558388469,0.01096094,91233.0,91228.0,0.06576874]
[1767558390168,0.06576574,91233.0,91228.0,0.06576874]
[1767558390681,0.01096106,91232.0,91227.0,1.0657689]
[1767558390881,0.06576642,91232.0,91227.0,1.0657689]
[1767558391023,0.01096106,91232.0,91228.0,0.01096154]
[1767558391383,0.06576574,91233.0,91228.0,0.06576916]
[1767558391904,0.06576648,91232.0,91227.0,1.0657689]
[1767558392335,0.06576648,91232.0,91227.0,1.01096166]
[1767558392536,0.06576648,91232.0,91227.0,1.06576974]
[1767558392755,0.01096118,91231.0,91227.0,1.01096166]
[1767558392919,0.01096118,91231.0,91227.0,1.0]
[1767558393254,0.0109613,91230.0,91227.0,1.0]
[1767558393429,0.01096106,91232.0,91227.0,1.06576957]
[1767558394909,0.01096118,91231.0,91227.0,1.01096166]
[1767558395322,0.06576658,91232.0,91227.0,1.06576994]
[1767558398451,0.01096106,91232.0,91228.0,0.01096154]
[1767558399544,0.06576581,91233.0,91228.0,0.06576919]
[1767558400979,0.06576643,91232.0,91227.0,1.06576994]
[1767558401185,0.01096106,91232.0,91228.0,0.01096154]
[1767558401354,0.06576581,91233.0,91228.0,0.06576912]
[1767558402179,0.06576581,91233.0,91228.0,0.06567908]
[1767558402694,0.01096094,91233.0,91229.0,0.01096142]
[1767558403065,0.06576592,91233.0,91228.0,0.06567908]
[1767558403286,0.01096094,91233.0,91229.0,0.01096142]
[1767558403653,0.01096094,91233.0,91228.0,0.05480729]
[1767558404090,0.0657657,91233.0,91228.0,0.06576883]
[1767558405576,0.06576647,91232.0,91228.0,0.01096154]
[1767558405776,0.01096106,91232.0,91228.0,0.01096154]
[1767558406021,0.0657657,91233.0,91228.0,0.01096154]
[1767558407148,0.0657657,91233.0,91228.0,0.06576918]
[1767558415074,0.01096094,91233.0,91229.0,0.01096142]
[1767558415254,0.06576587,91233.0,91228.0,0.06576918]
[1767558417609,0.06576587,91233.0,91228.0,0.06567915]
[1767558419831,0.0109613,91230.0,91227.0,0.91136749]
[1767558420045,0.05480773,91228.0,91227.0,0.40278859]
[1767558420508,0.0109613,91230.0,91227.0,0.40278859]
[1767558420715,0.01096118,91231.0,91228.0,0.000999]
[1767558420916,0.01096106,91232.0,91228.0,0.000999]
[1767558421122,0.01096106,91232.0,91227.0,0.45759686]
[1767558421446,0.06576495,91234.0,91228.0,0.06576924]
[1767558422406,0.01096094,91233.0,91228.0,0.06576924]
[1767558422606,0.01096094,91233.0,91229.0,0.01096142]
[1767558423201,0.01096094,91233.0,91228.0,0.06576924]
[1767558424258,0.06576575,91233.0,91227.0,0.46855852]
[1767558425326,0.01096106,91232.0,91227.0,0.46855852]
[1767558425682,0.01096106,91232.0,91228.0,0.01096154]
[1767558426218,0.01096106,91232.0,91227.0,0.46855852]
[1767558426766,0.06576642,91232.0,91227.0,0.41375025]
[1767558426966,0.01096106,91232.0,91227.0,0.46855857]
[1767558427317,0.01096118,91231.0,91227.0,0.40278859]
[1767558427531,0.06576669,91232.0,91227.0,0.41375025]
[1767558428369,0.06576575,91233.0,91227.0,0.46855848]
[1767558428669,0.06576575,91233.0,91227.0,0.46846844]
[1767558429017,0.01096106,91232.0,91227.0,0.46846844]
[1767558429436,0.01096106,91232.0,91227.0,0.46837841]
[1767558431099,0.06576575,91233.0,91228.0,0.01096154]
[1767558431533,0.06576575,91233.0,91228.0,0.06576926]
[1767558432479,0.01096094,91233.0,91228.0,0.06576926]
[1767558433472,0.02192,91241.0,91238.0,0.04716449]
[1767558433620,0.05480065,91240.0,91235.0,0.05812519]
[1767558433817,0.01096022,91239.0,91234.0,0.06576451]
[1767558434055,0.01096022,91239.0,91232.0,0.01096106]
[1767558434056,0.01096046,91237.0,91232.0,0.01096106]
[1767558434575,0.06576285,91237.0,91232.0,0.01096106]
[1767558434864,0.06576285,91237.0,91231.0,0.06576662]
[1767558435077,0.01096046,91237.0,91232.0,0.06576626]
[1767558435436,0.0657625,91238.0,91233.0,0.01096094]
[1767558435773,0.01096034,91238.0,91234.0,0.01096082]
[1767558435978,0.01096034,91238.0,91234.0,0.01087079]
[1767558436333,0.06576237,91239.0,91234.0,0.01087079]
[1767558437574,0.01096034,91238.0,91233.0,0.06576562]
[1767558438282,0.06576237,91239.0,91234.0,0.01096082]
[1767558439585,0.0109601,91240.0,91235.0,0.0109607]
[1767558440097,0.0002,91242.0,91239.0,0.01096022]
[1767558440303,0.02212,91242.0,91238.0,0.01096034]
[1767558440500,0.0002,91242.0,91237.0,0.06576274]
[1767558440726,0.0002,91242.0,91239.0,0.06576134]
[1767558440935,0.0002,91242.0,91240.0,0.05480005]
[1767558441135,0.0002,91242.0,91240.0,0.05471001]
[1767558441337,0.0002,91242.0,91241.0,0.05479992]
[1767558443026,0.01952,91245.0,91242.0,0.01095986]
[1767558443174,0.01952,91245.0,91242.0,0.06575915]
[1767558446998,0.01952,91245.0,91242.0,0.01095986]
[1767558447349,0.01952,91245.0,91242.0,0.06575883]
[1767558447755,0.01952,91245.0,91243.0,0.05479864]
[1767558448373,0.01952,91245.0,91242.0,0.06575883]
[1767558448738,0.01952,91245.0,91242.0,0.06575876]
[1767558448866,0.01952,91245.0,91242.0,0.01095986]
[1767558449239,0.01952,91245.0,91242.0,0.065759]
[1767558449638,0.01952,91245.0,91241.0,0.06575884]
[1767558449803,0.01952,91245.0,91242.0,0.01095986]
[1767558450372,0.01952,91245.0,91242.0,0.06575893]
[1767558450568,0.00852,91245.0,91242.0,0.06575893]
[1767558455153,0.00852,91245.0,91242.0,0.01095986]
[1767558456243,0.00852,91245.0,91242.0,0.06575896]
[1767558457992,0.00852,91245.0,91243.0,0.05479863]
[1767558458160,0.00852,91245.0,91242.0,0.06575896]
[1767558458484,0.06575633,91246.0,91241.0,0.01095998]
[1767558458646,0.01095938,91246.0,91241.0,0.06575963]
[1767558459048,0.06127595,91247.0,91242.0,0.01095986]
[1767558459448,0.06127595,91247.0,91242.0,0.0657591]
[1767558459666,0.00647926,91247.0,91243.0,0.01095974]
[1767558459983,0.00647926,91247.0,91242.0,0.0657591]
[1767558460984,0.06127563,91247.0,91242.0,0.01095986]
[1767558461512,0.01095938,91246.0,91242.0,0.01095986]
[1767558461811,0.06127563,91247.0,91242.0,0.06575896]
[1767558461812,0.00647926,91247.0,91242.0,0.06575896]
[1767558462184,0.06127565,91247.0,91242.0,0.06575896]
[1767558462510,0.01095926,91247.0,91243.0,0.01095974]
[1767558463395,0.06575495,91248.0,91243.0,0.01095974]
[1767558463620,0.01095914,91248.0,91244.0,0.01095962]
[1767558464222,0.06575489,91248.0,91243.0,0.0657583]
[1767558464624,0.01095914,91248.0,91244.0,0.01095962]
[1767558464937,0.01095926,91247.0,91242.0,0.06575888]
[1767558465301,0.06575504,91248.0,91243.0,0.01095974]
[1767558466130,0.06575504,91248.0,91243.0,0.06575842]
[1767558466949,0.01095926,91247.0,91242.0,0.06575888]
[1767558467174,0.06575504,91248.0,91243.0,0.01095974]
[1767558468267,0.01095914,91248.0,91243.0,0.0657581]
[1767558468632,0.78173082,91270.0,91245.0,0.06006712]
[1767558468633,0.01095866,91252.0,91245.0,0.06006712]
[1767558468838,0.04797158,91254.0,91250.0,0.04910762]
[1767558469038,0.01095854,91253.0,91248.0,0.11486241]
[1767558469263,0.01095866,91252.0,91248.0,0.04910762]
[1767558469462,0.06575131,91253.0,91248.0,0.06006676]
[1767558469661,0.06575214,91252.0,91248.0,0.04910762]
[1767558469850,0.06575134,91253.0,91248.0,0.04910762]
[1767558470050,0.06575134,91253.0,91248.0,0.06006676]
[1767558470672,0.00997762,91254.0,91251.0,0.04910762]
[1767558470882,0.00997762,91254.0,91252.0,0.04910762]
[1767558471082,0.000999,91252.0,91246.0,0.03287938]
[1767558471280,0.000999,91252.0,91246.0,0.02192]
[1767558471485,0.000999,91252.0,91247.0,0.01095926]
[1767558471821,0.05479374,91252.0,91247.0,0.01095926]
[1767558472293,0.01095854,91253.0,91247.0,0.06575543]
[1767558472884,0.01095866,91252.0,91247.0,0.06575543]
[1767558473268,0.06575205,91252.0,91247.0,0.06575543]
[1767558473472,0.01095866,91252.0,91247.0,0.06575543]
[1767558473837,0.06575212,91252.0,91247.0,0.06575543]
[1767558474033,0.02093604,91254.0,91247.0,0.06006688]
[1767558474244,0.02093604,91254.0,91249.0,0.01095902]
[1767558474449,0.00997762,91254.0,91250.0,0.0109589]
[1767558474983,0.00997762,91254.0,91250.0,0.01086885]
[1767558475814,0.00997762,91254.0,91252.0,0.04910762]
[1767558476448,0.00997762,91254.0,91253.0,0.04910762]
[1767558477804,0.00997762,91254.0,91253.0,0.10390033]
[1767558478787,0.0001413,91256.0,91255.0,0.10389913]
[1767558479191,0.0002,91257.0,91256.0,0.05479091]
[1767558479407,0.0002,91257.0,91256.0,0.10389853]
[1767558479614,0.00023055,91260.0,91257.0,0.06006568]
[1767558479783,0.00023055,91260.0,91259.0,0.04910762]
[1767558479984,0.00023055,91260.0,91259.0,0.04810862]
[1767558480409,0.01095734,91263.0,91260.0,0.00023]
[1767558480621,0.06574241,91266.0,91260.0,0.00013996]
[1767558480785,0.06574241,91266.0,91258.0,0.01095794]
[1767558480786,0.0109571,91265.0,91258.0,0.06574737]
[1767558481002,0.01095722,91264.0,91257.0,0.01095806]
[1767558481202,0.01095722,91264.0,91247.0,0.2191838]
[1767558481203,0.01095734,91263.0,91252.0,0.01095866]
[1767558481405,0.01095758,91261.0,91256.0,0.02183]
[1767558481638,0.01095782,91259.0,91247.0,0.01095926]
[1767558481784,0.01095842,91254.0,91247.0,0.02192]
[1767558481988,0.01256275,91256.0,91248.0,0.06575457]
[1767558482194,0.01095818,91256.0,91250.0,0.0109589]
[1767558482418,0.01095818,91256.0,91251.0,0.01095878]
[1767558482613,0.0657491,91256.0,91251.0,0.01095878]
[1767558482846,0.06574842,91257.0,91251.0,0.01095878]
[1767558483062,0.01095818,91256.0,91252.0,0.01095866]
[1767558483264,0.01095818,91256.0,91251.0,0.01095878]
[1767558483265,0.06574915,91256.0,91251.0,0.01095878]
[1767558483409,0.01095818,91256.0,91252.0,0.01095866]
[1767558483619,0.06574921,91256.0,91251.0,0.01095878]
[1767558484045,0.0109583,91255.0,91250.0,0.0657532]
[1767558484227,0.06574921,91256.0,91250.0,0.0109589]
[1767558484416,0.0109583,91255.0,91250.0,0.06575341]
[1767558484615,0.06574958,91256.0,91251.0,0.01095878]
[1767558484848,0.01095818,91256.0,91251.0,0.06575253]
[1767558485248,0.0109583,91255.0,91250.0,0.06575341]
[1767558485655,0.06574962,91256.0,91251.0,0.01095878]
[1767558486057,0.06574962,91256.0,91252.0,0.00049838]
[1767558486884,0.0109583,91255.0,91252.0,0.00049838]
[1767558487064,0.01095818,91256.0,91252.0,0.00049838]
[1767558487400,0.0109583,91255.0,91252.0,0.00049838]
[1767558487616,0.06574921,91256.0,91252.0,0.00049838]
[1767558487815,0.0109583,91255.0,91252.0,0.00049838]
[1767558488057,0.06574921,91256.0,91252.0,0.00049838]
[1767558488266,0.05479109,91256.0,91252.0,0.00049838]
[1767558488689,0.0109583,91255.0,91252.0,0.00049838]
[1767558489836,0.06574966,91256.0,91252.0,0.00049838]
[1767558490280,0.06574917,91256.0,91252.0,0.00049838]
[1767558490488,0.06574915,91256.0,91252.0,0.00049838]
[1767558490882,0.01095818,91256.0,91252.0,0.00049838]
[1767558491396,0.06574919,91256.0,91252.0,0.00049838]
[1767558491755,0.01095818,91256.0,91252.0,0.01145704]
[1767558492031,0.01095818,91256.0,91252.0,0.00049838]
[1767558492617,0.06574927,91256.0,91252.0,0.00049838]
[1767558492818,0.06574983,91255.0,91252.0,0.00049838]
[1767558493135,0.06574927,91256.0,91252.0,0.00049838]
[1767558493695,0.01095818,91256.0,91252.0,0.01145704]
[1767558493891,0.0109583,91255.0,91252.0,0.00049838]
[1767558494296,0.01095818,91256.0,91252.0,0.00049838]
[1767558494718,0.06574943,91256.0,91252.0,0.00049838]
[1767558494953,0.01095818,91256.0,91252.0,0.00049838]
[1767558495119,0.0109583,91255.0,91252.0,0.00049838]
[1767558496125,0.01095794,91258.0,91252.0,0.06625031]
[1767558496335,0.0109577,91260.0,91256.0,0.01095818]
[1767558496548,0.05478726,91264.0,91258.0,0.06574712]
[1767558496761,0.0109571,91265.0,91260.0,0.06318348]
[1767558496966,0.08766232,91266.0,91261.0,0.0476104]
[1767558497166,0.08766232,91266.0,91260.0,0.06574575]
[1767558497347,0.08666332,91266.0,91260.0,0.06574575]
[1767558497549,0.08666332,91266.0,91260.0,0.0109577]
[1767558497896,0.02192,91266.0,91261.0,0.06574549]
[1767558498117,0.02192,91266.0,91262.0,0.05478712]
[1767558498326,0.02192,91266.0,91263.0,0.01095734]
[1767558498502,0.02192,91268.0,91266.0,0.01095698]
[1767558498908,0.02192,91268.0,91265.0,0.05478549]
[1767558499116,0.02192,91268.0,91265.0,0.06574259]
[1767558499583,0.02192,91268.0,91267.0,0.05478431]
[1767558499801,0.02192,91268.0,91265.0,0.0109571]
[1767558500008,0.000999,91267.0,91263.0,0.01095734]
[1767558500210,0.08766061,91268.0,91263.0,0.01095734]
[1767558500412,0.03287674,91268.0,91263.0,0.06574387]
[1767558500825,0.03287674,91268.0,91263.0,0.01095734]
[1767558500826,0.08766068,91268.0,91263.0,0.01095734]
[1767558501049,0.03287674,91268.0,91263.0,0.01095734]
[1767558501242,0.03287674,91268.0,91263.0,0.065744]
[1767558502483,1e-08,91268.0,91267.0,0.05478431]
[1767558506447,1e-08,91268.0,91267.0,0.05469426]
[1767558507336,0.02192,91271.0,91270.0,0.06573872]
[1767558507540,0.06573514,91276.0,91270.0,0.06573872]
[1767558507541,0.00777,91280.0,91276.0,0.01095578]
[1767558507748,0.00777,91280.0,91278.0,0.0466114]
[1767558507949,0.00777,91280.0,91276.0,0.01095578]
[1767558507950,0.00777,91280.0,91276.0,0.0476104]
[1767558508062,0.00777,91280.0,91276.0,0.05856618]
[1767558508268,0.00777,91280.0,91277.0,0.05856606]
[1767558508466,0.00766999,91280.0,91277.0,0.11334423]
[1767558508918,0.01862529,91280.0,91277.0,0.0476104]
[1767558509221,0.00766999,91280.0,91276.0,0.01095578]
[1767558509519,0.01862529,91280.0,91276.0,0.01095578]
[1767558509720,0.01862529,91280.0,91275.0,0.0585663]
[1767558509897,0.00766999,91280.0,91276.0,0.01095578]
[1767558511472,0.01862529,91280.0,91275.0,0.0585663]
[1767558511670,0.00766999,91280.0,91276.0,0.06573468]
[1767558511996,0.00766999,91280.0,91277.0,0.01095566]
[1767558512317,0.00667099,91280.0,91277.0,0.06573384]
[1767558512537,0.00667099,91280.0,91278.0,0.05477744]
[1767558514031,0.00667099,91280.0,91278.0,0.10159288]
[1767558514231,0.00667099,91280.0,91278.0,0.05477719]
[1767558514816,0.00667099,91280.0,91279.0,0.05477711]
[1767558519133,0.0002,91282.0,91281.0,0.05477591]
[1767558519467,0.01115458,91286.0,91281.0,0.05477591]
[1767558519468,0.01115458,91286.0,91282.0,0.01095506]
[1767558519669,0.00030799,91286.0,91282.0,0.01095506]
[1767558520264,0.06603559,91286.0,91281.0,0.01095518]
[1767558520626,0.0109547,91285.0,91281.0,0.01095518]
[1767558521076,0.01095482,91284.0,91280.0,0.0109553]
[1767558521687,0.0002,91280.0,91277.0,0.11393431]
[1767558521834,0.0002,91280.0,91278.0,0.05477748]
[1767558522030,0.05477533,91282.0,91277.0,0.11393431]
[1767558522821,0.01095506,91282.0,91278.0,0.01095554]
[1767558522985,0.01095506,91282.0,91278.0,0.01075554]
[1767558523187,0.06573047,91282.0,91277.0,0.06573349]
[1767558523887,0.0657299,91283.0,91278.0,0.05477715]
[1767558524290,0.01095494,91283.0,91278.0,0.05477715]
[1767558524603,0.01095494,91283.0,91279.0,0.01095542]
[1767558524776,0.06572907,91284.0,91279.0,0.06573228]
[1767558524975,0.01095494,91283.0,91279.0,0.06573251]
[1767558525528,0.06572907,91284.0,91279.0,0.06573251]
[1767558525906,0.06572899,91284.0,91279.0,0.06573251]
[1767558526121,0.01095482,91284.0,91280.0,0.0109553]
[1767558526927,0.06572903,91284.0,91279.0,0.06573251]
[1767558527130,0.06572902,91284.0,91280.0,0.0109553]
[1767558527313,0.01095482,91284.0,91280.0,0.0109553]
[1767558528698,0.06572894,91284.0,91279.0,0.01095542]
[1767558529285,0.06572967,91283.0,91279.0,0.01095542]
[1767558529524,0.06572894,91284.0,91279.0,0.01095542]
[1767558529746,0.06572894,91284.0,91279.0,0.06573228]
[1767558530154,0.06572902,91284.0,91279.0,0.06573228]
[1767558530352,0.01095482,91284.0,91279.0,0.06573228]
[1767558530583,0.01095542,91279.0,91271.0,0.23008339]
[1767558530716,0.01095554,91278.0,91272.0,0.06573713]
[1767558530916,0.11358685,91278.0,91273.0,0.06573632]
[1767558531171,0.01095554,91278.0,91274.0,0.01095602]
[1767558531609,0.06573295,91279.0,91274.0,0.06573588]
[1767558531730,0.01095542,91279.0,91275.0,0.0109559]
[1767558532383,0.06573228,91281.0,91276.0,0.01095578]
[1767558532610,0.06573228,91281.0,91276.0,0.06573444]
[1767558533768,0.06573228,91281.0,91276.0,0.06568788]
[1767558534892,0.06573041,91282.0,91277.0,0.06573378]
[1767558535218,0.06573041,91282.0,91277.0,0.06573372]
[1767558535411,0.06573109,91281.0,91277.0,0.01095566]
[1767558536807,0.06573109,91281.0,91276.0,0.06568788]
[1767558536970,0.0109553,91280.0,91276.0,0.06568812]
[1767558537170,0.06573109,91281.0,91276.0,0.06568812]
[1767558537838,0.06573213,91280.0,91275.0,0.0109559]
[1767558538162,0.01095542,91279.0,91274.0,0.06573594]
[1767558538365,0.01095542,91279.0,91275.0,0.06573526]
[1767558538740,0.06573213,91280.0,91275.0,0.06573526]
[1767558538908,0.06573213,91280.0,91276.0,0.01095578]
[1767558539109,0.0109553,91280.0,91276.0,0.01095578]
[1767558539309,0.0109553,91280.0,91276.0,0.06573458]
[1767558539696,0.01095518,91281.0,91277.0,0.01095566]
[1767558540137,0.06573137,91282.0,91277.0,0.06573382]
[1767558540918,0.01095506,91282.0,91278.0,0.06573312]
[1767558541118,0.00995606,91282.0,91278.0,0.06573312]
[1767558541315,0.0066924,91282.0,91278.0,0.06573312]
[1767558541856,0.06573074,91283.0,91278.0,0.06573312]
[1767558542351,0.01095518,91281.0,91277.0,0.01095566]
[1767558542718,0.01095518,91281.0,91277.0,0.06573396]
[1767558543052,0.0657304,91282.0,91277.0,0.06573396]
[1767558543287,0.0657305,91282.0,91278.0,0.01095554]
[1767558543445,0.05199862,91282.0,91278.0,0.01095554]
[1767558544224,0.05191052,91282.0,91278.0,0.01095554]
[1767558544427,0.06286558,91282.0,91278.0,0.01095554]
[1767558545187,0.06573113,91281.0,91277.0,0.06573396]
[1767558545393,0.01086708,91281.0,91277.0,0.06573396]
[1767558545793,0.000999,91277.0,91275.0,0.06573507]
[1767558546044,0.000999,91277.0,91276.0,0.05477891]
[1767558546458,0.06573048,91282.0,91276.0,0.06573469]
[1767558546459,0.0657311,91281.0,91276.0,0.06573469]
[1767558546805,0.0657311,91281.0,91277.0,0.01095566]
[1767558547012,0.0657311,91281.0,91277.0,0.06573396]
[1767558547523,0.0657311,91281.0,91277.0,0.01095566]
[1767558549968,0.01095518,91281.0,91277.0,0.06573383]
[1767558550309,0.06573048,91282.0,91277.0,0.06573383]
[1767558551347,0.06573048,91282.0,91278.0,0.01095554]
[1767558553156,0.01095518,91281.0,91277.0,0.01095566]